Workbook

Sheet DATA
B2: FITNESS PROGRESS CHART FOR WOMEN
B4: Instructions: Replace the sample data in the first five columns, and in the Height boxes to the right. The last four (gray) columns will be calculated for you using formulas. Then, see your progress by looking at the MEASUREMENTS, WEIGHT & BMI, and WEIGHT & BODY FAT charts on the other worksheets. For more information on formulas or using data in charts, see Excel Help. | J4: Height (feet) | L4: 5
J5: Height (inches) | L5: 6.5
B7: Date | C7: Weight (pounds) | D7: Chest (inches) | E7: Waist (inches) | F7: Hips (inches) | G7: Wrist (inches) | H7: Forearm (inches) | I7: Estimated Lean Body Weight | J7: Estimated Body Fat Weight | K7: Estimated Body Fat Percentage | L7: Estimated Body Mass Index (BMI)
B8: 4150500.00% | C8: 140 | D8: 32 | E8: 31 | F8: 40 | G8: 6.8 | H8: 11.5 | I8: =((tblData[[#This Row],[Weight (pounds)]]*0.732)+ 8.987)+(tblData[[#This Row],[Wrist (inches)]]/3.14)-(tblData[[#This Row],[Waist (inches)]]*0.157)-(tblData[[#This Row],[Hips (inches)]]*0.249)+(tblData[[#This Row],[Forearm (inches)]]*0.434) -> 103.80 | J8: =tblData[[#This Row],[Weight (pounds)]]-tblData[[#This Row],[Estimated Lean Body Weight]] -> 36.20 | K8: =((tblData[[#This Row],[Estimated Body Fat Weight]]*100)/tblData[[#This Row],[Weight (pounds)]])/100 -> 25.86% | L8: =(tblData[[#This Row],[Weight (pounds)]]/((Height_Ft*12)+Height_In))/((Height_Ft*12)+Height_In)*703 -> 22.26
B9: 4151200.00% | C9: 140 | D9: 32 | E9: 31 | F9: 39.5 | G9: 6.7 | H9: 11.5 | I9: =((tblData[[#This Row],[Weight (pounds)]]*0.732)+ 8.987)+(tblData[[#This Row],[Wrist (inches)]]/3.14)-(tblData[[#This Row],[Waist (inches)]]*0.157)-(tblData[[#This Row],[Hips (inches)]]*0.249)+(tblData[[#This Row],[Forearm (inches)]]*0.434) -> 103.89 | J9: =tblData[[#This Row],[Weight (pounds)]]-tblData[[#This Row],[Estimated Lean Body Weight]] -> 36.11 | K9: =((tblData[[#This Row],[Estimated Body Fat Weight]]*100)/tblData[[#This Row],[Weight (pounds)]])/100 -> 25.79% | L9: =(tblData[[#This Row],[Weight (pounds)]]/((Height_Ft*12)+Height_In))/((Height_Ft*12)+Height_In)*703 -> 22.26
B10: 4151900.00% | C10: 139 | D10: 32 | E10: 31 | F10: 39.5 | G10: 6.7 | H10: 11.5 | I10: =((tblData[[#This Row],[Weight (pounds)]]*0.732)+ 8.987)+(tblData[[#This Row],[Wrist (inches)]]/3.14)-(tblData[[#This Row],[Waist (inches)]]*0.157)-(tblData[[#This Row],[Hips (inches)]]*0.249)+(tblData[[#This Row],[Forearm (inches)]]*0.434) -> 103.16 | J10: =tblData[[#This Row],[Weight (pounds)]]-tblData[[#This Row],[Estimated Lean Body Weight]] -> 35.84 | K10: =((tblData[[#This Row],[Estimated Body Fat Weight]]*100)/tblData[[#This Row],[Weight (pounds)]])/100 -> 25.79% | L10: =(tblData[[#This Row],[Weight (pounds)]]/((Height_Ft*12)+Height_In))/((Height_Ft*12)+Height_In)*703 -> 22.10
B11: 4152600.00% | C11: 139 | D11: 32 | E11: 28 | F11: 39 | G11: 6.3 | H11: 11 | I11: =((tblData[[#This Row],[Weight (pounds)]]*0.732)+ 8.987)+(tblData[[#This Row],[Wrist (inches)]]/3.14)-(tblData[[#This Row],[Waist (inches)]]*0.157)-(tblData[[#This Row],[Hips (inches)]]*0.249)+(tblData[[#This Row],[Forearm (inches)]]*0.434) -> 103.41 | J11: =tblData[[#This Row],[Weight (pounds)]]-tblData[[#This Row],[Estimated Lean Body Weight]] -> 35.59 | K11: =((tblData[[#This Row],[Estimated Body Fat Weight]]*100)/tblData[[#This Row],[Weight (pounds)]])/100 -> 25.61% | L11: =(tblData[[#This Row],[Weight (pounds)]]/((Height_Ft*12)+Height_In))/((Height_Ft*12)+Height_In)*703 -> 22.10
B12: 4153300.00% | C12: 139 | D12: 32 | E12: 28 | F12: 39 | G12: 6.3 | H12: 11 | I12: =((tblData[[#This Row],[Weight (pounds)]]*0.732)+ 8.987)+(tblData[[#This Row],[Wrist (inches)]]/3.14)-(tblData[[#This Row],[Waist (inches)]]*0.157)-(tblData[[#This Row],[Hips (inches)]]*0.249)+(tblData[[#This Row],[Forearm (inches)]]*0.434) -> 103.41 | J12: =tblData[[#This Row],[Weight (pounds)]]-tblData[[#This Row],[Estimated Lean Body Weight]] -> 35.59 | K12: =((tblData[[#This Row],[Estimated Body Fat Weight]]*100)/tblData[[#This Row],[Weight (pounds)]])/100 -> 25.61% | L12: =(tblData[[#This Row],[Weight (pounds)]]/((Height_Ft*12)+Height_In))/((Height_Ft*12)+Height_In)*703 -> 22.10
B13: 4154000.00% | C13: 138 | D13: 32 | E13: 28 | F13: 39 | G13: 6.3 | H13: 11 | I13: =((tblData[[#This Row],[Weight (pounds)]]*0.732)+ 8.987)+(tblData[[#This Row],[Wrist (inches)]]/3.14)-(tblData[[#This Row],[Waist (inches)]]*0.157)-(tblData[[#This Row],[Hips (inches)]]*0.249)+(tblData[[#This Row],[Forearm (inches)]]*0.434) -> 102.68 | J13: =tblData[[#This Row],[Weight (pounds)]]-tblData[[#This Row],[Estimated Lean Body Weight]] -> 35.32 | K13: =((tblData[[#This Row],[Estimated Body Fat Weight]]*100)/tblData[[#This Row],[Weight (pounds)]])/100 -> 25.60% | L13: =(tblData[[#This Row],[Weight (pounds)]]/((Height_Ft*12)+Height_In))/((Height_Ft*12)+Height_In)*703 -> 21.94
B14: 4154700.00% | C14: 137 | D14: 32 | E14: 28 | F14: 38 | G14: 6.3 | H14: 11 | I14: =((tblData[[#This Row],[Weight (pounds)]]*0.732)+ 8.987)+(tblData[[#This Row],[Wrist (inches)]]/3.14)-(tblData[[#This Row],[Waist (inches)]]*0.157)-(tblData[[#This Row],[Hips (inches)]]*0.249)+(tblData[[#This Row],[Forearm (inches)]]*0.434) -> 102.19 | J14: =tblData[[#This Row],[Weight (pounds)]]-tblData[[#This Row],[Estimated Lean Body Weight]] -> 34.81 | K14: =((tblData[[#This Row],[Estimated Body Fat Weight]]*100)/tblData[[#This Row],[Weight (pounds)]])/100 -> 25.41% | L14: =(tblData[[#This Row],[Weight (pounds)]]/((Height_Ft*12)+Height_In))/((Height_Ft*12)+Height_In)*703 -> 21.78
B15: 4155400.00% | C15: 136 | D15: 31.5 | E15: 27.5 | F15: 38 | G15: 6.3 | H15: 11 | I15: =((tblData[[#This Row],[Weight (pounds)]]*0.732)+ 8.987)+(tblData[[#This Row],[Wrist (inches)]]/3.14)-(tblData[[#This Row],[Waist (inches)]]*0.157)-(tblData[[#This Row],[Hips (inches)]]*0.249)+(tblData[[#This Row],[Forearm (inches)]]*0.434) -> 101.54 | J15: =tblData[[#This Row],[Weight (pounds)]]-tblData[[#This Row],[Estimated Lean Body Weight]] -> 34.46 | K15: =((tblData[[#This Row],[Estimated Body Fat Weight]]*100)/tblData[[#This Row],[Weight (pounds)]])/100 -> 25.34% | L15: =(tblData[[#This Row],[Weight (pounds)]]/((Height_Ft*12)+Height_In))/((Height_Ft*12)+Height_In)*703 -> 21.62
B16: 4156100.00% | C16: 135 | D16: 31.5 | E16: 27.25 | F16: 37.75 | G16: 6.3 | H16: 10.5 | I16: =((tblData[[#This Row],[Weight (pounds)]]*0.732)+ 8.987)+(tblData[[#This Row],[Wrist (inches)]]/3.14)-(tblData[[#This Row],[Waist (inches)]]*0.157)-(tblData[[#This Row],[Hips (inches)]]*0.249)+(tblData[[#This Row],[Forearm (inches)]]*0.434) -> 100.69 | J16: =tblData[[#This Row],[Weight (pounds)]]-tblData[[#This Row],[Estimated Lean Body Weight]] -> 34.31 | K16: =((tblData[[#This Row],[Estimated Body Fat Weight]]*100)/tblData[[#This Row],[Weight (pounds)]])/100 -> 25.41% | L16: =(tblData[[#This Row],[Weight (pounds)]]/((Height_Ft*12)+Height_In))/((Height_Ft*12)+Height_In)*703 -> 21.46
B17: 4156800.00% | C17: 135 | D17: 31.5 | E17: 27 | F17: 37 | G17: 6.3 | H17: 10.5 | I17: =((tblData[[#This Row],[Weight (pounds)]]*0.732)+ 8.987)+(tblData[[#This Row],[Wrist (inches)]]/3.14)-(tblData[[#This Row],[Waist (inches)]]*0.157)-(tblData[[#This Row],[Hips (inches)]]*0.249)+(tblData[[#This Row],[Forearm (inches)]]*0.434) -> 100.92 | J17: =tblData[[#This Row],[Weight (pounds)]]-tblData[[#This Row],[Estimated Lean Body Weight]] -> 34.08 | K17: =((tblData[[#This Row],[Estimated Body Fat Weight]]*100)/tblData[[#This Row],[Weight (pounds)]])/100 -> 25.25% | L17: =(tblData[[#This Row],[Weight (pounds)]]/((Height_Ft*12)+Height_In))/((Height_Ft*12)+Height_In)*703 -> 21.46
B18: 4157500.00% | C18: 134 | D18: 31 | E18: 27 | F18: 37 | G18: 6.3 | H18: 10 | I18: =((tblData[[#This Row],[Weight (pounds)]]*0.732)+ 8.987)+(tblData[[#This Row],[Wrist (inches)]]/3.14)-(tblData[[#This Row],[Waist (inches)]]*0.157)-(tblData[[#This Row],[Hips (inches)]]*0.249)+(tblData[[#This Row],[Forearm (inches)]]*0.434) -> 99.97 | J18: =tblData[[#This Row],[Weight (pounds)]]-tblData[[#This Row],[Estimated Lean Body Weight]] -> 34.03 | K18: =((tblData[[#This Row],[Estimated Body Fat Weight]]*100)/tblData[[#This Row],[Weight (pounds)]])/100 -> 25.40% | L18: =(tblData[[#This Row],[Weight (pounds)]]/((Height_Ft*12)+Height_In))/((Height_Ft*12)+Height_In)*703 -> 21.30
B19: 4158200.00% | C19: 133 | D19: 31 | E19: 27 | F19: 37 | G19: 6.2 | H19: 10 | I19: =((tblData[[#This Row],[Weight (pounds)]]*0.732)+ 8.987)+(tblData[[#This Row],[Wrist (inches)]]/3.14)-(tblData[[#This Row],[Waist (inches)]]*0.157)-(tblData[[#This Row],[Hips (inches)]]*0.249)+(tblData[[#This Row],[Forearm (inches)]]*0.434) -> 99.21 | J19: =tblData[[#This Row],[Weight (pounds)]]-tblData[[#This Row],[Estimated Lean Body Weight]] -> 33.79 | K19: =((tblData[[#This Row],[Estimated Body Fat Weight]]*100)/tblData[[#This Row],[Weight (pounds)]])/100 -> 25.41% | L19: =(tblData[[#This Row],[Weight (pounds)]]/((Height_Ft*12)+Height_In))/((Height_Ft*12)+Height_In)*703 -> 21.14
B20: 4158900.00% | C20: 132 | D20: 31 | E20: 27 | F20: 36 | G20: 6.2 | H20: 10 | I20: =((tblData[[#This Row],[Weight (pounds)]]*0.732)+ 8.987)+(tblData[[#This Row],[Wrist (inches)]]/3.14)-(tblData[[#This Row],[Waist (inches)]]*0.157)-(tblData[[#This Row],[Hips (inches)]]*0.249)+(tblData[[#This Row],[Forearm (inches)]]*0.434) -> 98.72 | J20: =tblData[[#This Row],[Weight (pounds)]]-tblData[[#This Row],[Estimated Lean Body Weight]] -> 33.28 | K20: =((tblData[[#This Row],[Estimated Body Fat Weight]]*100)/tblData[[#This Row],[Weight (pounds)]])/100 -> 25.21% | L20: =(tblData[[#This Row],[Weight (pounds)]]/((Height_Ft*12)+Height_In))/((Height_Ft*12)+Height_In)*703 -> 20.98
B21: 4159600.00% | C21: 130 | D21: 31 | E21: 26 | F21: 36 | G21: 6.2 | H21: 10 | I21: =((tblData[[#This Row],[Weight (pounds)]]*0.732)+ 8.987)+(tblData[[#This Row],[Wrist (inches)]]/3.14)-(tblData[[#This Row],[Waist (inches)]]*0.157)-(tblData[[#This Row],[Hips (inches)]]*0.249)+(tblData[[#This Row],[Forearm (inches)]]*0.434) -> 97.42 | J21: =tblData[[#This Row],[Weight (pounds)]]-tblData[[#This Row],[Estimated Lean Body Weight]] -> 32.58 | K21: =((tblData[[#This Row],[Estimated Body Fat Weight]]*100)/tblData[[#This Row],[Weight (pounds)]])/100 -> 25.06% | L21: =(tblData[[#This Row],[Weight (pounds)]]/((Height_Ft*12)+Height_In))/((Height_Ft*12)+Height_In)*703 -> 20.67
B22: 4160300.00% | C22: 130 | D22: 31 | E22: 26 | F22: 36 | G22: 6.2 | H22: 10 | I22: =((tblData[[#This Row],[Weight (pounds)]]*0.732)+ 8.987)+(tblData[[#This Row],[Wrist (inches)]]/3.14)-(tblData[[#This Row],[Waist (inches)]]*0.157)-(tblData[[#This Row],[Hips (inches)]]*0.249)+(tblData[[#This Row],[Forearm (inches)]]*0.434) -> 97.42 | J22: =tblData[[#This Row],[Weight (pounds)]]-tblData[[#This Row],[Estimated Lean Body Weight]] -> 32.58 | K22: =((tblData[[#This Row],[Estimated Body Fat Weight]]*100)/tblData[[#This Row],[Weight (pounds)]])/100 -> 25.06% | L22: =(tblData[[#This Row],[Weight (pounds)]]/((Height_Ft*12)+Height_In))/((Height_Ft*12)+Height_In)*703 -> 20.67
B23: 4161000.00% | C23: 129 | D23: 31 | E23: 26 | F23: 35 | G23: 6 | H23: 9.5 | I23: =((tblData[[#This Row],[Weight (pounds)]]*0.732)+ 8.987)+(tblData[[#This Row],[Wrist (inches)]]/3.14)-(tblData[[#This Row],[Waist (inches)]]*0.157)-(tblData[[#This Row],[Hips (inches)]]*0.249)+(tblData[[#This Row],[Forearm (inches)]]*0.434) -> 96.65 | J23: =tblData[[#This Row],[Weight (pounds)]]-tblData[[#This Row],[Estimated Lean Body Weight]] -> 32.35 | K23: =((tblData[[#This Row],[Estimated Body Fat Weight]]*100)/tblData[[#This Row],[Weight (pounds)]])/100 -> 25.08% | L23: =(tblData[[#This Row],[Weight (pounds)]]/((Height_Ft*12)+Height_In))/((Height_Ft*12)+Height_In)*703 -> 20.51
B24: 4161700.00% | C24: 129 | D24: 31 | E24: 26 | F24: 35 | G24: 6 | H24: 9.5 | I24: =((tblData[[#This Row],[Weight (pounds)]]*0.732)+ 8.987)+(tblData[[#This Row],[Wrist (inches)]]/3.14)-(tblData[[#This Row],[Waist (inches)]]*0.157)-(tblData[[#This Row],[Hips (inches)]]*0.249)+(tblData[[#This Row],[Forearm (inches)]]*0.434) -> 96.65 | J24: =tblData[[#This Row],[Weight (pounds)]]-tblData[[#This Row],[Estimated Lean Body Weight]] -> 32.35 | K24: =((tblData[[#This Row],[Estimated Body Fat Weight]]*100)/tblData[[#This Row],[Weight (pounds)]])/100 -> 25.08% | L24: =(tblData[[#This Row],[Weight (pounds)]]/((Height_Ft*12)+Height_In))/((Height_Ft*12)+Height_In)*703 -> 20.51
B25: 4162400.00% | C25: 129 | D25: 31 | E25: 26 | F25: 35 | G25: 6 | H25: 9.5 | I25: =((tblData[[#This Row],[Weight (pounds)]]*0.732)+ 8.987)+(tblData[[#This Row],[Wrist (inches)]]/3.14)-(tblData[[#This Row],[Waist (inches)]]*0.157)-(tblData[[#This Row],[Hips (inches)]]*0.249)+(tblData[[#This Row],[Forearm (inches)]]*0.434) -> 96.65 | J25: =tblData[[#This Row],[Weight (pounds)]]-tblData[[#This Row],[Estimated Lean Body Weight]] -> 32.35 | K25: =((tblData[[#This Row],[Estimated Body Fat Weight]]*100)/tblData[[#This Row],[Weight (pounds)]])/100 -> 25.08% | L25: =(tblData[[#This Row],[Weight (pounds)]]/((Height_Ft*12)+Height_In))/((Height_Ft*12)+Height_In)*703 -> 20.51
B26: 4163100.00% | C26: 129 | D26: 31 | E26: 26 | F26: 35 | G26: 6 | H26: 9.5 | I26: =((tblData[[#This Row],[Weight (pounds)]]*0.732)+ 8.987)+(tblData[[#This Row],[Wrist (inches)]]/3.14)-(tblData[[#This Row],[Waist (inches)]]*0.157)-(tblData[[#This Row],[Hips (inches)]]*0.249)+(tblData[[#This Row],[Forearm (inches)]]*0.434) -> 96.65 | J26: =tblData[[#This Row],[Weight (pounds)]]-tblData[[#This Row],[Estimated Lean Body Weight]] -> 32.35 | K26: =((tblData[[#This Row],[Estimated Body Fat Weight]]*100)/tblData[[#This Row],[Weight (pounds)]])/100 -> 25.08% | L26: =(tblData[[#This Row],[Weight (pounds)]]/((Height_Ft*12)+Height_In))/((Height_Ft*12)+Height_In)*703 -> 20.51
B27: 4163800.00% | C27: 129 | D27: 31 | E27: 26 | F27: 35 | G27: 6 | H27: 9.5 | I27: =((tblData[[#This Row],[Weight (pounds)]]*0.732)+ 8.987)+(tblData[[#This Row],[Wrist (inches)]]/3.14)-(tblData[[#This Row],[Waist (inches)]]*0.157)-(tblData[[#This Row],[Hips (inches)]]*0.249)+(tblData[[#This Row],[Forearm (inches)]]*0.434) -> 96.65 | J27: =tblData[[#This Row],[Weight (pounds)]]-tblData[[#This Row],[Estimated Lean Body Weight]] -> 32.35 | K27: =((tblData[[#This Row],[Estimated Body Fat Weight]]*100)/tblData[[#This Row],[Weight (pounds)]])/100 -> 25.08% | L27: =(tblData[[#This Row],[Weight (pounds)]]/((Height_Ft*12)+Height_In))/((Height_Ft*12)+Height_In)*703 -> 20.51
B28: 4164500.00% | C28: 129 | D28: 31 | E28: 26 | F28: 35 | G28: 6 | H28: 9.5 | I28: =((tblData[[#This Row],[Weight (pounds)]]*0.732)+ 8.987)+(tblData[[#This Row],[Wrist (inches)]]/3.14)-(tblData[[#This Row],[Waist (inches)]]*0.157)-(tblData[[#This Row],[Hips (inches)]]*0.249)+(tblData[[#This Row],[Forearm (inches)]]*0.434) -> 96.65 | J28: =tblData[[#This Row],[Weight (pounds)]]-tblData[[#This Row],[Estimated Lean Body Weight]] -> 32.35 | K28: =((tblData[[#This Row],[Estimated Body Fat Weight]]*100)/tblData[[#This Row],[Weight (pounds)]])/100 -> 25.08% | L28: =(tblData[[#This Row],[Weight (pounds)]]/((Height_Ft*12)+Height_In))/((Height_Ft*12)+Height_In)*703 -> 20.51
B29: 4165200.00% | C29: 129 | D29: 31 | E29: 26 | F29: 35 | G29: 6 | H29: 9.5 | I29: =((tblData[[#This Row],[Weight (pounds)]]*0.732)+ 8.987)+(tblData[[#This Row],[Wrist (inches)]]/3.14)-(tblData[[#This Row],[Waist (inches)]]*0.157)-(tblData[[#This Row],[Hips (inches)]]*0.249)+(tblData[[#This Row],[Forearm (inches)]]*0.434) -> 96.65 | J29: =tblData[[#This Row],[Weight (pounds)]]-tblData[[#This Row],[Estimated Lean Body Weight]] -> 32.35 | K29: =((tblData[[#This Row],[Estimated Body Fat Weight]]*100)/tblData[[#This Row],[Weight (pounds)]])/100 -> 25.08% | L29: =(tblData[[#This Row],[Weight (pounds)]]/((Height_Ft*12)+Height_In))/((Height_Ft*12)+Height_In)*703 -> 20.51
B30: 4165900.00% | C30: 129 | D30: 31 | E30: 26 | F30: 35 | G30: 6 | H30: 9.5 | I30: =((tblData[[#This Row],[Weight (pounds)]]*0.732)+ 8.987)+(tblData[[#This Row],[Wrist (inches)]]/3.14)-(tblData[[#This Row],[Waist (inches)]]*0.157)-(tblData[[#This Row],[Hips (inches)]]*0.249)+(tblData[[#This Row],[Forearm (inches)]]*0.434) -> 96.65 | J30: =tblData[[#This Row],[Weight (pounds)]]-tblData[[#This Row],[Estimated Lean Body Weight]] -> 32.35 | K30: =((tblData[[#This Row],[Estimated Body Fat Weight]]*100)/tblData[[#This Row],[Weight (pounds)]])/100 -> 25.08% | L30: =(tblData[[#This Row],[Weight (pounds)]]/((Height_Ft*12)+Height_In))/((Height_Ft*12)+Height_In)*703 -> 20.51
B31: 4166600.00% | C31: 129 | D31: 31 | E31: 26 | F31: 35 | G31: 6 | H31: 9.5 | I31: =((tblData[[#This Row],[Weight (pounds)]]*0.732)+ 8.987)+(tblData[[#This Row],[Wrist (inches)]]/3.14)-(tblData[[#This Row],[Waist (inches)]]*0.157)-(tblData[[#This Row],[Hips (inches)]]*0.249)+(tblData[[#This Row],[Forearm (inches)]]*0.434) -> 96.65 | J31: =tblData[[#This Row],[Weight (pounds)]]-tblData[[#This Row],[Estimated Lean Body Weight]] -> 32.35 | K31: =((tblData[[#This Row],[Estimated Body Fat Weight]]*100)/tblData[[#This Row],[Weight (pounds)]])/100 -> 25.08% | L31: =(tblData[[#This Row],[Weight (pounds)]]/((Height_Ft*12)+Height_In))/((Height_Ft*12)+Height_In)*703 -> 20.51
B32: 4167300.00% | C32: 129 | D32: 31 | E32: 26 | F32: 35 | G32: 6 | H32: 9.5 | I32: =((tblData[[#This Row],[Weight (pounds)]]*0.732)+ 8.987)+(tblData[[#This Row],[Wrist (inches)]]/3.14)-(tblData[[#This Row],[Waist (inches)]]*0.157)-(tblData[[#This Row],[Hips (inches)]]*0.249)+(tblData[[#This Row],[Forearm (inches)]]*0.434) -> 96.65 | J32: =tblData[[#This Row],[Weight (pounds)]]-tblData[[#This Row],[Estimated Lean Body Weight]] -> 32.35 | K32: =((tblData[[#This Row],[Estimated Body Fat Weight]]*100)/tblData[[#This Row],[Weight (pounds)]])/100 -> 25.08% | L32: =(tblData[[#This Row],[Weight (pounds)]]/((Height_Ft*12)+Height_In))/((Height_Ft*12)+Height_In)*703 -> 20.51
B33: 4168000.00% | C33: 129 | D33: 31 | E33: 26 | F33: 35 | G33: 6 | H33: 9.5 | I33: =((tblData[[#This Row],[Weight (pounds)]]*0.732)+ 8.987)+(tblData[[#This Row],[Wrist (inches)]]/3.14)-(tblData[[#This Row],[Waist (inches)]]*0.157)-(tblData[[#This Row],[Hips (inches)]]*0.249)+(tblData[[#This Row],[Forearm (inches)]]*0.434) -> 96.65 | J33: =tblData[[#This Row],[Weight (pounds)]]-tblData[[#This Row],[Estimated Lean Body Weight]] -> 32.35 | K33: =((tblData[[#This Row],[Estimated Body Fat Weight]]*100)/tblData[[#This Row],[Weight (pounds)]])/100 -> 25.08% | L33: =(tblData[[#This Row],[Weight (pounds)]]/((Height_Ft*12)+Height_In))/((Height_Ft*12)+Height_In)*703 -> 20.51
B34: 4168700.00% | C34: 129 | D34: 31 | E34: 26 | F34: 35 | G34: 6 | H34: 9.5 | I34: =((tblData[[#This Row],[Weight (pounds)]]*0.732)+ 8.987)+(tblData[[#This Row],[Wrist (inches)]]/3.14)-(tblData[[#This Row],[Waist (inches)]]*0.157)-(tblData[[#This Row],[Hips (inches)]]*0.249)+(tblData[[#This Row],[Forearm (inches)]]*0.434) -> 96.65 | J34: =tblData[[#This Row],[Weight (pounds)]]-tblData[[#This Row],[Estimated Lean Body Weight]] -> 32.35 | K34: =((tblData[[#This Row],[Estimated Body Fat Weight]]*100)/tblData[[#This Row],[Weight (pounds)]])/100 -> 25.08% | L34: =(tblData[[#This Row],[Weight (pounds)]]/((Height_Ft*12)+Height_In))/((Height_Ft*12)+Height_In)*703 -> 20.51
